Workbook

Sheet Monthly Budget
B2: COMPANY NAME
B3: MONTHLY BUDGET | L3: 2011-03-01
B5: BUDGET TOTALS | C5: ESTIMATED | D5: ACTUAL | E5: DIFFERENCE | H5: INCOME | I5: ESTIMATED | J5: ACTUAL | K5: TOP 5 AMOUNT | L5: DIFFERENCE
B6: Income | C6: =IncomeTable[[#Totals],[ESTIMATED]] -> 63300 | D6: =IncomeTable[[#Totals],[ACTUAL]] -> 57450 | E6: =TotalsTable[[#This Row],[ACTUAL]]-TotalsTable[[#This Row],[ESTIMATED]] -> -5850 | H6: Net sales | I6: 60000 | J6: 54000 | K6: =IncomeTable[[#This Row],[ACTUAL]]+(10^-6)*ROW(IncomeTable[[#This Row],[ACTUAL]]) -> 54000.00001 | L6: =IncomeTable[[#This Row],[ACTUAL]]-IncomeTable[[#This Row],[ESTIMATED]] -> -6000
B7: Expenses | C7: =OperatingExpensesTable[[#Totals],[ESTIMATED]]+PersonnelExpensesTable[[#Totals],[ESTIMATED]] -> 54500 | D7: =OperatingExpensesTable[[#Totals],[ACTUAL]]+PersonnelExpensesTable[[#Totals],[ACTUAL]] -> 49630 | E7: =TotalsTable[[#This Row],[ESTIMATED]]-TotalsTable[[#This Row],[ACTUAL]] -> 4870 | H7: Interest income | I7: 3000 | J7: 3000 | K7: =IncomeTable[[#This Row],[ACTUAL]]+(10^-6)*ROW(IncomeTable[[#This Row],[ACTUAL]]) -> 3000.000007 | L7: =IncomeTable[[#This Row],[ACTUAL]]-IncomeTable[[#This Row],[ESTIMATED]] -> 0
B8: Balance (Income minus Expenses) | C8: =C6-C7 -> 8800 | D8: =D6-D7 -> 7820 | E8: =TotalsTable[[#Totals],[ACTUAL]]-TotalsTable[[#Totals],[ESTIMATED]] -> -980 | H8: Asset sales (gain/loss) | I8: 300 | J8: 450 | K8: =IncomeTable[[#This Row],[ACTUAL]]+(10^-6)*ROW(IncomeTable[[#This Row],[ACTUAL]]) -> 450.000008 | L8: =IncomeTable[[#This Row],[ACTUAL]]-IncomeTable[[#This Row],[ESTIMATED]] -> 150
H9: Total | I9: =SUBTOTAL(109,IncomeTable[ESTIMATED]) -> 63300 | J9: =SUBTOTAL(109,IncomeTable[ACTUAL]) -> 57450 | L9: =SUBTOTAL(109,IncomeTable[DIFFERENCE]) -> -5850
H11: PERSONNEL EXPENSES | I11: ESTIMATED | J11: ACTUAL | K11: Top 5 Amount | L11: DIFFERENCE
H12: Wages | I12: 9500 | J12: 9600 | K12: =PersonnelExpensesTable[[#This Row],[ACTUAL]]+(10^-6)*ROW(PersonnelExpensesTable[[#This Row],[ACTUAL]]) -> 9600.000012 | L12: =PersonnelExpensesTable[[#This Row],[ESTIMATED]]-PersonnelExpensesTable[[#This Row],[ACTUAL]] -> -100
H13: Employee benefits | I13: 4000 | K13: =PersonnelExpensesTable[[#This Row],[ACTUAL]]+(10^-6)*ROW(PersonnelExpensesTable[[#This Row],[ACTUAL]]) -> 1.3e-05 | L13: =PersonnelExpensesTable[[#This Row],[ESTIMATED]]-PersonnelExpensesTable[[#This Row],[ACTUAL]] -> 4000
H14: Commission | I14: 5000 | J14: 4500 | K14: =PersonnelExpensesTable[[#This Row],[ACTUAL]]+(10^-6)*ROW(PersonnelExpensesTable[[#This Row],[ACTUAL]]) -> 4500.000014 | L14: =PersonnelExpensesTable[[#This Row],[ESTIMATED]]-PersonnelExpensesTable[[#This Row],[ACTUAL]] -> 500
H15: Total Personnel | I15: =SUBTOTAL(109,PersonnelExpensesTable[ESTIMATED]) -> 18500 | J15: =SUBTOTAL(109,PersonnelExpensesTable[ACTUAL]) -> 14100 | L15: =SUBTOTAL(109,PersonnelExpensesTable[DIFFERENCE]) -> 4400
H17: OPERATING EXPENSES | I17: ESTIMATED | J17: ACTUAL | K17: Top 5 Amount | L17: DIFFERENCE
H18: Advertising | I18: 3000 | J18: 2500 | K18: =OperatingExpensesTable[[#This Row],[ACTUAL]]+(10^-6)*ROW(OperatingExpensesTable[[#This Row],[ACTUAL]]) -> 2500.000018 | L18: =OperatingExpensesTable[[#This Row],[ESTIMATED]]-OperatingExpensesTable[[#This Row],[ACTUAL]] -> 500
H19: Bad debts | I19: 2000 | J19: 2000 | K19: =OperatingExpensesTable[[#This Row],[ACTUAL]]+(10^-6)*ROW(OperatingExpensesTable[[#This Row],[ACTUAL]]) -> 2000.000019 | L19: =OperatingExpensesTable[[#This Row],[ESTIMATED]]-OperatingExpensesTable[[#This Row],[ACTUAL]] -> 0
H20: Cash discounts | I20: 1500 | J20: 2175 | K20: =OperatingExpensesTable[[#This Row],[ACTUAL]]+(10^-6)*ROW(OperatingExpensesTable[[#This Row],[ACTUAL]]) -> 2175.00002 | L20: =OperatingExpensesTable[[#This Row],[ESTIMATED]]-OperatingExpensesTable[[#This Row],[ACTUAL]] -> -675
H21: Delivery costs | I21: 2000 | J21: 1500 | K21: =OperatingExpensesTable[[#This Row],[ACTUAL]]+(10^-6)*ROW(OperatingExpensesTable[[#This Row],[ACTUAL]]) -> 1500.000021 | L21: =OperatingExpensesTable[[#This Row],[ESTIMATED]]-OperatingExpensesTable[[#This Row],[ACTUAL]] -> 500
H22: Depreciation | I22: 1000 | J22: 1000 | K22: =OperatingExpensesTable[[#This Row],[ACTUAL]]+(10^-6)*ROW(OperatingExpensesTable[[#This Row],[ACTUAL]]) -> 1000.000022 | L22: =OperatingExpensesTable[[#This Row],[ESTIMATED]]-OperatingExpensesTable[[#This Row],[ACTUAL]] -> 0
H23: Dues and subscriptions | I23: 500 | J23: 525 | K23: =OperatingExpensesTable[[#This Row],[ACTUAL]]+(10^-6)*ROW(OperatingExpensesTable[[#This Row],[ACTUAL]]) -> 525.000023 | L23: =OperatingExpensesTable[[#This Row],[ESTIMATED]]-OperatingExpensesTable[[#This Row],[ACTUAL]] -> -25
H24: Insurance | I24: 1300 | J24: 1275 | K24: =OperatingExpensesTable[[#This Row],[ACTUAL]]+(10^-6)*ROW(OperatingExpensesTable[[#This Row],[ACTUAL]]) -> 1275.000024 | L24: =OperatingExpensesTable[[#This Row],[ESTIMATED]]-OperatingExpensesTable[[#This Row],[ACTUAL]] -> 25
H25: Interest | I25: 2000 | J25: 2200 | K25: =OperatingExpensesTable[[#This Row],[ACTUAL]]+(10^-6)*ROW(OperatingExpensesTable[[#This Row],[ACTUAL]]) -> 2200.000025 | L25: =OperatingExpensesTable[[#This Row],[ESTIMATED]]-OperatingExpensesTable[[#This Row],[ACTUAL]] -> -200
H26: Legal and auditing | I26: 1000 | J26: 800 | K26: =OperatingExpensesTable[[#This Row],[ACTUAL]]+(10^-6)*ROW(OperatingExpensesTable[[#This Row],[ACTUAL]]) -> 800.000026 | L26: =OperatingExpensesTable[[#This Row],[ESTIMATED]]-OperatingExpensesTable[[#This Row],[ACTUAL]] -> 200
H27: Maintenance and repairs | I27: 4500 | J27: 4600 | K27: =OperatingExpensesTable[[#This Row],[ACTUAL]]+(10^-6)*ROW(OperatingExpensesTable[[#This Row],[ACTUAL]]) -> 4600.000027 | L27: =OperatingExpensesTable[[#This Row],[ESTIMATED]]-OperatingExpensesTable[[#This Row],[ACTUAL]] -> -100
H28: Office supplies | I28: 800 | J28: 750 | K28: =OperatingExpensesTable[[#This Row],[ACTUAL]]+(10^-6)*ROW(OperatingExpensesTable[[#This Row],[ACTUAL]]) -> 750.000028 | L28: =OperatingExpensesTable[[#This Row],[ESTIMATED]]-OperatingExpensesTable[[#This Row],[ACTUAL]] -> 50
H29: Postage | I29: 400 | J29: 350 | K29: =OperatingExpensesTable[[#This Row],[ACTUAL]]+(10^-6)*ROW(OperatingExpensesTable[[#This Row],[ACTUAL]]) -> 350.000029 | L29: =OperatingExpensesTable[[#This Row],[ESTIMATED]]-OperatingExpensesTable[[#This Row],[ACTUAL]] -> 50
H30: Rent or mortgage | I30: 4100 | J30: 4500 | K30: =OperatingExpensesTable[[#This Row],[ACTUAL]]+(10^-6)*ROW(OperatingExpensesTable[[#This Row],[ACTUAL]]) -> 4500.00003 | L30: =OperatingExpensesTable[[#This Row],[ESTIMATED]]-OperatingExpensesTable[[#This Row],[ACTUAL]] -> -400
B31: WHAT ARE MY TOP 5 HIGHEST OPERATING EXPENSES? | H31: Sales expenses | I31: 350 | J31: 400 | K31: =OperatingExpensesTable[[#This Row],[ACTUAL]]+(10^-6)*ROW(OperatingExpensesTable[[#This Row],[ACTUAL]]) -> 400.000031 | L31: =OperatingExpensesTable[[#This Row],[ESTIMATED]]-OperatingExpensesTable[[#This Row],[ACTUAL]] -> -50
B32: EXPENSE | C32: AMOUNT | D32: % OF EXPENSES | E32: 15% REDUCTION | H32: Shipping and storage | I32: 900 | J32: 840 | K32: =OperatingExpensesTable[[#This Row],[ACTUAL]]+(10^-6)*ROW(OperatingExpensesTable[[#This Row],[ACTUAL]]) -> 840.000032 | L32: =OperatingExpensesTable[[#This Row],[ESTIMATED]]-OperatingExpensesTable[[#This Row],[ACTUAL]] -> 60
B33: =INDEX(OperatingExpensesTable[],MATCH(Top5Expenses[[#This Row],[AMOUNT]],OperatingExpensesTable[Top 5 Amount],0),1) -> Maintenance and repairs | C33: =LARGE(OperatingExpensesTable[Top 5 Amount],1) -> 4600.000027 | D33: =Top5Expenses[[#This Row],[AMOUNT]]/$D$7 -> 0.09268587602 | E33: =Top5Expenses[[#This Row],[AMOUNT]]*0.15 -> 690.0000041 | H33: Supplies | I33: 5000 | J33: 4500 | K33: =OperatingExpensesTable[[#This Row],[ACTUAL]]+(10^-6)*ROW(OperatingExpensesTable[[#This Row],[ACTUAL]]) -> 4500.000033 | L33: =OperatingExpensesTable[[#This Row],[ESTIMATED]]-OperatingExpensesTable[[#This Row],[ACTUAL]] -> 500
B34: =INDEX(OperatingExpensesTable[],MATCH(Top5Expenses[[#This Row],[AMOUNT]],OperatingExpensesTable[Top 5 Amount],0),1) -> Supplies | C34: =LARGE(OperatingExpensesTable[Top 5 Amount],2) -> 4500.000033 | D34: =Top5Expenses[[#This Row],[AMOUNT]]/$D$7 -> 0.09067096581 | E34: =Top5Expenses[[#This Row],[AMOUNT]]*0.15 -> 675.000005 | H34: Taxes | I34: 3000 | J34: 3200 | K34: =OperatingExpensesTable[[#This Row],[ACTUAL]]+(10^-6)*ROW(OperatingExpensesTable[[#This Row],[ACTUAL]]) -> 3200.000034 | L34: =OperatingExpensesTable[[#This Row],[ESTIMATED]]-OperatingExpensesTable[[#This Row],[ACTUAL]] -> -200
B35: =INDEX(OperatingExpensesTable[],MATCH(Top5Expenses[[#This Row],[AMOUNT]],OperatingExpensesTable[Top 5 Amount],0),1) -> Rent or mortgage | C35: =LARGE(OperatingExpensesTable[Top 5 Amount],3) -> 4500.00003 | D35: =Top5Expenses[[#This Row],[AMOUNT]]/$D$7 -> 0.09067096575 | E35: =Top5Expenses[[#This Row],[AMOUNT]]*0.15 -> 675.0000045 | H35: Telephone | I35: 250 | J35: 280 | K35: =OperatingExpensesTable[[#This Row],[ACTUAL]]+(10^-6)*ROW(OperatingExpensesTable[[#This Row],[ACTUAL]]) -> 280.000035 | L35: =OperatingExpensesTable[[#This Row],[ESTIMATED]]-OperatingExpensesTable[[#This Row],[ACTUAL]] -> -30
B36: =INDEX(OperatingExpensesTable[],MATCH(Top5Expenses[[#This Row],[AMOUNT]],OperatingExpensesTable[Top 5 Amount],0),1) -> Taxes | C36: =LARGE(OperatingExpensesTable[Top 5 Amount],4) -> 3200.000034 | D36: =Top5Expenses[[#This Row],[AMOUNT]]/$D$7 -> 0.06447713145 | E36: =Top5Expenses[[#This Row],[AMOUNT]]*0.15 -> 480.0000051 | H36: Utilities | I36: 1400 | J36: 1385 | K36: =OperatingExpensesTable[[#This Row],[ACTUAL]]+(10^-6)*ROW(OperatingExpensesTable[[#This Row],[ACTUAL]]) -> 1385.000036 | L36: =OperatingExpensesTable[[#This Row],[ESTIMATED]]-OperatingExpensesTable[[#This Row],[ACTUAL]] -> 15
B37: =INDEX(OperatingExpensesTable[],MATCH(Top5Expenses[[#This Row],[AMOUNT]],OperatingExpensesTable[Top 5 Amount],0),1) -> Advertising | C37: =LARGE(OperatingExpensesTable[Top 5 Amount],5) -> 2500.000018 | D37: =Top5Expenses[[#This Row],[AMOUNT]]/$D$7 -> 0.05037275877 | E37: =Top5Expenses[[#This Row],[AMOUNT]]*0.15 -> 375.0000027 | H37: Other | I37: 1000 | J37: 750 | K37: =OperatingExpensesTable[[#This Row],[ACTUAL]]+(10^-6)*ROW(OperatingExpensesTable[[#This Row],[ACTUAL]]) -> 750.000037 | L37: =OperatingExpensesTable[[#This Row],[ESTIMATED]]-OperatingExpensesTable[[#This Row],[ACTUAL]] -> 250
B38: Total | C38: =SUBTOTAL(109,Top5Expenses[AMOUNT]) -> 19300.00014 | D38: =SUBTOTAL(109,Top5Expenses[% OF EXPENSES]) -> 0.3888776978 | E38: =SUBTOTAL(109,Top5Expenses[15% REDUCTION]) -> 2895.000021 | H38: Total Operating | I38: =SUBTOTAL(109,OperatingExpensesTable[ESTIMATED]) -> 36000 | J38: =SUBTOTAL(109,OperatingExpensesTable[ACTUAL]) -> 35530 | L38: =SUBTOTAL(109,OperatingExpensesTable[DIFFERENCE]) -> 470
